[Event "Titled Tuesday Blitz May 30 Late 2023"]
[White "MariusBieliauskas"]
[Black "Kleiman, Jake"]
[BlackFideId "2020041"]
[WhiteElo "2467"]
[BlackElo "2588"]
[Result "0-1"]
[Round "11"]
[TimeControl "180+2"]
[Date "2023.05.31"]
[WhiteClock "0:00:25"]
[BlackClock "0:01:22"]

1. d4 {[%clk 0:03:00]}  Nf6 {[%clk 0:02:57]} 2. c4 {[%clk 0:02:59]}  c5 {[%clk 0:02:57]} 3. d5 {[%clk 0:02:58]}  b5 {[%clk 0:02:57]} 4. cxb5 {[%clk 0:02:49]}  a6 {[%clk 0:02:57]} 5. bxa6 {[%clk 0:02:50]}  g6 {[%clk 0:02:57]} 6. Nc3 {[%clk 0:02:50]}  Bg7 {[%clk 0:02:56]} 7. Nf3 {[%clk 0:02:50]}  O-O {[%clk 0:02:57]} 8. g3 {[%clk 0:02:50]}  d6 {[%clk 0:02:56]} 9. Bg2 {[%clk 0:02:51]}  Bxa6 {[%clk 0:02:57]} 10. O-O {[%clk 0:02:51]}  Nbd7 {[%clk 0:02:58]} 11. Rb1 {[%clk 0:02:51]}  Qa5 {[%clk 0:02:57]} 12. Bd2 {[%clk 0:02:50]}  Rfb8 {[%clk 0:02:57]} 13. Qc2 {[%clk 0:02:50]}  Ng4 {[%clk 0:02:55]} 14. Rfd1 {[%clk 0:02:48]}  Nge5 {[%clk 0:02:54]} 15. Nxe5 {[%clk 0:02:42]}  Nxe5 {[%clk 0:02:55]} 16. b3 {[%clk 0:02:41]}  Rb7 {[%clk 0:02:51]} 17. a4 {[%clk 0:02:40]}  Rab8 {[%clk 0:02:48]} 18. Nb5 {[%clk 0:02:24]}  Qd8 {[%clk 0:02:46]} 19. Nc3 {[%clk 0:02:19]}  Rb6 {[%clk 0:02:40]} 20. h3 {[%clk 0:02:06]}  Qc8 {[%clk 0:02:39]} 21. f4 {[%clk 0:02:05]}  Nd7 {[%clk 0:02:39]} 22. e4 {[%clk 0:02:04]}  Qb7 {[%clk 0:02:37]} 23. Bf1 {[%clk 0:01:41]}  Bxf1 {[%clk 0:02:31]} 24. Rxf1 {[%clk 0:01:41]}  Rxb3 {[%clk 0:02:31]} 25. Rxb3 {[%clk 0:01:41]}  Qxb3 {[%clk 0:02:32]} 26. Qxb3 {[%clk 0:01:41]}  Rxb3 {[%clk 0:02:33]} 27. Rc1 {[%clk 0:01:35]}  Ra3 {[%clk 0:02:29]} 28. Kf2 {[%clk 0:01:30]}  f5 {[%clk 0:02:23]} 29. exf5 {[%clk 0:01:27]}  gxf5 {[%clk 0:02:23]} 30. Ke2 {[%clk 0:01:27]}  Kf7 {[%clk 0:02:21]} 31. g4 {[%clk 0:01:19]}  Nb6 {[%clk 0:02:20]} 32. gxf5 {[%clk 0:01:15]}  Bxc3 {[%clk 0:02:06]} 33. Rxc3 {[%clk 0:01:10]}  Rxa4 {[%clk 0:02:06]} 34. Rd3 {[%clk 0:01:04]}  Kf6 {[%clk 0:01:57]} 35. Kf3 {[%clk 0:00:49]}  Kxf5 {[%clk 0:01:55]} 36. Be3 {[%clk 0:00:49]}  Rb4 {[%clk 0:01:50]} 37. Rd1 {[%clk 0:00:48]}  Rb3 {[%clk 0:01:47]} 38. Ke2 {[%clk 0:00:37]}  Ke4 {[%clk 0:01:48]} 39. Bc1 {[%clk 0:00:36]}  Nxd5 {[%clk 0:01:47]} 40. Rg1 {[%clk 0:00:36]}  Rxh3 {[%clk 0:01:42]} 41. Rg5 {[%clk 0:00:35]}  Rh2+ {[%clk 0:01:41]} 42. Kd1 {[%clk 0:00:35]}  h5 {[%clk 0:01:34]} 43. f5 {[%clk 0:00:32]}  h4 {[%clk 0:01:31]} 44. Rg4+ {[%clk 0:00:32]}  Kxf5 {[%clk 0:01:31]} 45. Rg5+ {[%clk 0:00:32]}  Ke4 {[%clk 0:01:30]} 46. Rg4+ {[%clk 0:00:32]}  Kd3 {[%clk 0:01:30]} 47. Rg1 {[%clk 0:00:31]}  h3 {[%clk 0:01:25]} 48. Rg3+ {[%clk 0:00:29]}  Kc4 {[%clk 0:01:24]} 49. Rg4+ {[%clk 0:00:25]}  Kb3 {[%clk 0:01:22]} 50. Rg3+ {[%clk 0:00:25]}  Nc3+ {[%clk 0:01:22]} 51. Ke1 {[%clk 0:00:25]}  Rh1+ {[%clk 0:01:21]} 52. Kd2 {[%clk 0:00:25]}  Rd1+ {[%clk 0:01:22]} 0-1


[Site "https://www.chess.com"]

[Event "Titled Tuesday Blitz May 30 Late 2023"]
[White "brm72"]
[Black "i_like_explosions"]
[WhiteElo "2584"]
[BlackElo "2461"]
[Result "1-0"]
[Round "11"]
[TimeControl "180+2"]
[Date "2023.05.31"]
[WhiteClock "0:01:35"]
[BlackClock "0:00:57"]

1. e4 {[%clk 0:03:00]}  c5 {[%clk 0:02:58]} 2. Nf3 {[%clk 0:03:00]}  Nc6 {[%clk 0:02:58]} 3. Bb5 {[%clk 0:03:00]}  e6 {[%clk 0:02:58]} 4. Bxc6 {[%clk 0:02:57]}  bxc6 {[%clk 0:02:59]} 5. d3 {[%clk 0:02:57]}  Qc7 {[%clk 0:02:59]} 6. O-O {[%clk 0:02:57]}  e5 {[%clk 0:02:59]} 7. Nbd2 {[%clk 0:02:47]}  Ne7 {[%clk 0:02:58]} 8. Nc4 {[%clk 0:02:46]}  d6 {[%clk 0:02:58]} 9. c3 {[%clk 0:02:35]}  Ng6 {[%clk 0:02:58]} 10. d4 {[%clk 0:02:34]}  cxd4 {[%clk 0:02:56]} 11. cxd4 {[%clk 0:02:35]}  Be7 {[%clk 0:02:56]} 12. dxe5 {[%clk 0:02:33]}  dxe5 {[%clk 0:02:56]} 13. Qc2 {[%clk 0:02:33]}  O-O {[%clk 0:02:55]} 14. Be3 {[%clk 0:02:33]}  Be6 {[%clk 0:02:54]} 15. Rac1 {[%clk 0:02:32]}  Rab8 {[%clk 0:02:50]} 16. b3 {[%clk 0:02:32]}  Rfd8 {[%clk 0:02:43]} 17. Rfd1 {[%clk 0:02:31]}  Rxd1+ {[%clk 0:02:42]} 18. Rxd1 {[%clk 0:02:32]}  Rd8 {[%clk 0:02:43]} 19. Rxd8+ {[%clk 0:02:30]}  Qxd8 {[%clk 0:02:43]} 20. Bxa7 {[%clk 0:02:30]}  f6 {[%clk 0:02:40]} 21. Be3 {[%clk 0:02:29]}  Bg4 {[%clk 0:02:19]} 22. Nfd2 {[%clk 0:02:24]}  Nf8 {[%clk 0:02:15]} 23. h3 {[%clk 0:02:21]}  Be6 {[%clk 0:02:15]} 24. a4 {[%clk 0:02:21]}  Nd7 {[%clk 0:02:13]} 25. a5 {[%clk 0:02:21]}  c5 {[%clk 0:02:13]} 26. Qa2 {[%clk 0:02:18]}  Qa8 {[%clk 0:02:10]} 27. Qa4 {[%clk 0:02:17]}  Kf7 {[%clk 0:02:07]} 28. f3 {[%clk 0:02:17]}  Nb8 {[%clk 0:02:08]} 29. Qb5 {[%clk 0:02:16]}  Bd7 {[%clk 0:02:03]} 30. Qb6 {[%clk 0:02:09]}  Na6 {[%clk 0:01:58]} 31. Nd6+ {[%clk 0:02:04]}  Bxd6 {[%clk 0:01:54]} 32. Qxd6 {[%clk 0:02:04]}  Qc6 {[%clk 0:01:54]} 33. Nc4 {[%clk 0:01:59]}  Qxd6 {[%clk 0:01:22]} 34. Nxd6+ {[%clk 0:02:00]}  Kg6 {[%clk 0:01:23]} 35. Nb7 {[%clk 0:01:58]}  Be6 {[%clk 0:01:23]} 36. Nxc5 {[%clk 0:01:58]}  Nxc5 {[%clk 0:01:23]} 37. Bxc5 {[%clk 0:01:59]}  Bxb3 {[%clk 0:01:23]} 38. a6 {[%clk 0:01:59]}  Ba4 {[%clk 0:01:22]} 39. Kf2 {[%clk 0:01:56]}  Kf7 {[%clk 0:01:22]} 40. Ke3 {[%clk 0:01:56]}  Ke6 {[%clk 0:01:22]} 41. Bf8 {[%clk 0:01:55]}  g6 {[%clk 0:01:22]} 42. Bg7 {[%clk 0:01:54]}  Bc6 {[%clk 0:01:17]} 43. Kd2 {[%clk 0:01:50]}  f5 {[%clk 0:01:17]} 44. exf5+ {[%clk 0:01:47]}  Kxf5 {[%clk 0:01:17]} 45. Ke3 {[%clk 0:01:45]}  h5 {[%clk 0:01:16]} 46. g4+ {[%clk 0:01:43]}  hxg4 {[%clk 0:01:16]} 47. fxg4+ {[%clk 0:01:43]}  Ke6 {[%clk 0:01:04]} 48. h4 {[%clk 0:01:41]}  e4 {[%clk 0:01:02]} 49. a7 {[%clk 0:01:38]}  Kf7 {[%clk 0:01:00]} 50. Bd4 {[%clk 0:01:38]}  Ke6 {[%clk 0:01:00]} 51. Kf4 {[%clk 0:01:38]}  Kf7 {[%clk 0:01:00]} 52. Kg5 {[%clk 0:01:38]}  Ba8 {[%clk 0:01:00]} 53. Kh6 {[%clk 0:01:38]}  Bd5 {[%clk 0:00:58]} 54. h5 {[%clk 0:01:37]}  gxh5 {[%clk 0:00:58]} 55. gxh5 {[%clk 0:01:37]}  Kg8 {[%clk 0:00:57]} 56. Kg6 {[%clk 0:01:35]}  Ba8 {[%clk 0:00:57]} 57. h6 {[%clk 0:01:35]} 1-0


[Site "https://www.chess.com"]

[Event "Titled Tuesday Blitz May 30 Late 2023"]
[White "Le Goff, Ronan"]
[Black "Pakleza, Zbigniew"]
[WhiteFideId "612073"]
[BlackFideId "1119290"]
[WhiteElo "2275"]
[BlackElo "2410"]
[Result "1/2-1/2"]
[Round "11"]
[TimeControl "180+2"]
[Date "2023.05.31"]
[WhiteClock "0:00:10"]
[BlackClock "0:00:05"]

1. d4 {[%clk 0:03:00]}  a6 {[%clk 0:02:56]} 2. e4 {[%clk 0:02:53]}  b6 {[%clk 0:02:56]} 3. Nf3 {[%clk 0:02:50]}  e6 {[%clk 0:02:56]} 4. Bd3 {[%clk 0:02:49]}  d6 {[%clk 0:02:56]} 5. O-O {[%clk 0:02:50]}  c6 {[%clk 0:02:56]} 6. c4 {[%clk 0:02:47]}  f6 {[%clk 0:02:56]} 7. Nc3 {[%clk 0:02:48]}  Ne7 {[%clk 0:02:56]} 8. Be3 {[%clk 0:02:44]}  g6 {[%clk 0:02:56]} 9. Qe2 {[%clk 0:02:44]}  h6 {[%clk 0:02:56]} 10. Rad1 {[%clk 0:02:45]}  Bg7 {[%clk 0:02:53]} 11. Rfe1 {[%clk 0:02:44]}  O-O {[%clk 0:02:51]} 12. Bb1 {[%clk 0:02:43]}  Nd7 {[%clk 0:02:45]} 13. h3 {[%clk 0:02:36]}  Kh7 {[%clk 0:02:40]} 14. Qc2 {[%clk 0:02:14]}  Bb7 {[%clk 0:02:27]} 15. Ne2 {[%clk 0:02:12]}  e5 {[%clk 0:02:08]} 16. Ng3 {[%clk 0:02:09]}  Qc7 {[%clk 0:02:00]} 17. h4 {[%clk 0:02:08]}  h5 {[%clk 0:01:58]} 18. b4 {[%clk 0:02:06]}  Rfd8 {[%clk 0:01:48]} 19. Rc1 {[%clk 0:02:03]}  Bh6 {[%clk 0:01:42]} 20. Bxh6 {[%clk 0:02:01]}  Kxh6 {[%clk 0:01:42]} 21. c5 {[%clk 0:02:02]}  bxc5 {[%clk 0:01:18]} 22. bxc5 {[%clk 0:02:01]}  a5 {[%clk 0:01:10]} 23. Red1 {[%clk 0:01:56]}  dxc5 {[%clk 0:01:05]} 24. dxc5 {[%clk 0:01:48]}  Nf8 {[%clk 0:01:00]} 25. Qc3 {[%clk 0:01:40]}  Kg7 {[%clk 0:00:55]} 26. Nd2 {[%clk 0:01:33]}  Ba6 {[%clk 0:00:52]} 27. a3 {[%clk 0:01:25]}  Ne6 {[%clk 0:00:50]} 28. Ba2 {[%clk 0:01:18]}  Nf4 {[%clk 0:00:45]} 29. Nc4 {[%clk 0:01:11]}  Bxc4 {[%clk 0:00:34]} 30. Qxc4 {[%clk 0:01:12]}  Ng8 {[%clk 0:00:33]} 31. Ne2 {[%clk 0:01:03]}  Nxe2+ {[%clk 0:00:24]} 32. Qxe2 {[%clk 0:01:04]}  Nh6 {[%clk 0:00:22]} 33. f3 {[%clk 0:00:55]}  Qe7 {[%clk 0:00:19]} 34. Qc4 {[%clk 0:00:53]}  f5 {[%clk 0:00:19]} 35. Rd6 {[%clk 0:00:50]}  Qxh4 {[%clk 0:00:10]} 36. Rcd1 {[%clk 0:00:45]}  fxe4 {[%clk 0:00:09]} 37. Qe6 {[%clk 0:00:38]}  Qg5 {[%clk 0:00:03]} 38. Rd7+ {[%clk 0:00:35]}  Rxd7 {[%clk 0:00:02]} 39. Rxd7+ {[%clk 0:00:34]}  Kh8 {[%clk 0:00:02]} 40. Qxc6 {[%clk 0:00:21]}  Rf8 {[%clk 0:00:02]} 41. Qxe4 {[%clk 0:00:17]}  Qc1+ {[%clk 0:00:02]} 42. Kh2 {[%clk 0:00:16]}  Qg5 {[%clk 0:00:02]} 43. c6 {[%clk 0:00:12]}  h4 {[%clk 0:00:03]} 44. c7 {[%clk 0:00:10]}  Rc8 {[%clk 0:00:03]} 45. Qd5 {[%clk 0:00:09]}  Qg3+ {[%clk 0:00:02]} 46. Kg1 {[%clk 0:00:08]}  Qe1+ {[%clk 0:00:03]} 47. Kh2 {[%clk 0:00:09]}  Qg3+ {[%clk 0:00:04]} 48. Kg1 {[%clk 0:00:10]}  Qe1+ {[%clk 0:00:04]} 49. Kh2 {[%clk 0:00:10]}  Qg3+ {[%clk 0:00:05]} 1/2-1/2


[Site "https://www.chess.com"]

[Event "Titled Tuesday Blitz May 30 Late 2023"]
[White "Arencibia Monduy, Antonio"]
[Black "Golubev, Mikhail"]
[WhiteFideId "3507939"]
[BlackFideId "14100983"]
[WhiteElo "2463"]
[BlackElo "2374"]
[Result "0-1"]
[Round "11"]
[TimeControl "180+2"]
[Date "2023.05.31"]
[WhiteClock "0:00:46"]
[BlackClock "0:00:07"]

1. e4 {[%clk 0:02:56]}  c5 {[%clk 0:03:00]} 2. Nf3 {[%clk 0:02:53]}  d6 {[%clk 0:02:59]} 3. c3 {[%clk 0:02:54]}  Nf6 {[%clk 0:02:59]} 4. Bd3 {[%clk 0:02:52]}  Nc6 {[%clk 0:02:49]} 5. h3 {[%clk 0:02:52]}  g6 {[%clk 0:02:42]} 6. Bc2 {[%clk 0:02:52]}  Bg7 {[%clk 0:02:43]} 7. O-O {[%clk 0:02:52]}  O-O {[%clk 0:02:42]} 8. Re1 {[%clk 0:02:53]}  e5 {[%clk 0:02:37]} 9. d4 {[%clk 0:02:42]}  cxd4 {[%clk 0:02:34]} 10. cxd4 {[%clk 0:02:43]}  Nxd4 {[%clk 0:02:25]} 11. Nxd4 {[%clk 0:02:43]}  exd4 {[%clk 0:02:25]} 12. Qxd4 {[%clk 0:02:44]}  Re8 {[%clk 0:02:23]} 13. Qd1 {[%clk 0:02:36]}  d5 {[%clk 0:02:07]} 14. exd5 {[%clk 0:02:36]}  Rxe1+ {[%clk 0:02:03]} 15. Qxe1 {[%clk 0:02:37]}  Nxd5 {[%clk 0:02:03]} 16. Nc3 {[%clk 0:02:36]}  Nxc3 {[%clk 0:02:01]} 17. bxc3 {[%clk 0:02:37]}  Be6 {[%clk 0:02:00]} 18. Bb3 {[%clk 0:02:31]}  Rc8 {[%clk 0:01:39]} 19. Bb2 {[%clk 0:02:20]}  Bc4 {[%clk 0:01:26]} 20. Rd1 {[%clk 0:02:18]}  Qc7 {[%clk 0:01:09]} 21. Bxc4 {[%clk 0:02:03]}  Qxc4 {[%clk 0:01:10]} 22. Qe7 {[%clk 0:02:03]}  b5 {[%clk 0:00:37]} 23. Rd8+ {[%clk 0:01:49]}  Rxd8 {[%clk 0:00:32]} 24. Qxd8+ {[%clk 0:01:50]}  Bf8 {[%clk 0:00:32]} 25. Ba3 {[%clk 0:01:51]}  h5 {[%clk 0:00:23]} 26. Qxf8+ {[%clk 0:01:48]}  Kh7 {[%clk 0:00:23]} 27. Bb4 {[%clk 0:01:40]}  Qxa2 {[%clk 0:00:21]} 28. Qd8 {[%clk 0:01:14]}  Qe6 {[%clk 0:00:17]} 29. Bc5 {[%clk 0:01:10]}  Qe1+ {[%clk 0:00:06]} 30. Kh2 {[%clk 0:01:11]}  Qe5+ {[%clk 0:00:07]} 31. g3 {[%clk 0:01:09]}  Qxc5 {[%clk 0:00:08]} 32. Qd2 {[%clk 0:01:06]}  Kg7 {[%clk 0:00:08]} 33. f4 {[%clk 0:00:56]}  a5 {[%clk 0:00:08]} 34. g4 {[%clk 0:00:55]}  hxg4 {[%clk 0:00:08]} 35. hxg4 {[%clk 0:00:55]}  b4 {[%clk 0:00:08]} 36. cxb4 {[%clk 0:00:54]}  axb4 {[%clk 0:00:09]} 37. f5 {[%clk 0:00:53]}  Qc3 {[%clk 0:00:08]} 38. Qg5 {[%clk 0:00:47]}  b3 {[%clk 0:00:07]} 39. fxg6 {[%clk 0:00:47]}  Qc2+ {[%clk 0:00:07]} 40. Kh3 {[%clk 0:00:47]}  Qxg6 {[%clk 0:00:07]} 41. Qe5+ {[%clk 0:00:46]}  Qf6 {[%clk 0:00:07]} 42. Qb5 {[%clk 0:00:46]}  b2 {[%clk 0:00:07]} 43. g5 {[%clk 0:00:46]}  Qf3+ {[%clk 0:00:07]} 44. Kh4 {[%clk 0:00:46]}  Qh1+ {[%clk 0:00:07]} 45. Kg4 {[%clk 0:00:46]}  b1=Q {[%clk 0:00:08]} 46. Qe5+ {[%clk 0:00:46]}  Kh7 {[%clk 0:00:07]} 0-1


[Site "https://www.chess.com"]

[Event "Titled Tuesday Blitz May 30 Late 2023"]
[White "ElDivis"]
[Black "Goffredo_Fofi"]
[WhiteElo "2544"]
[BlackElo "2453"]
[Result "1-0"]
[Round "11"]
[TimeControl "180+2"]
[Date "2023.05.31"]
[WhiteClock "0:00:30"]
[BlackClock "0:00:01"]

1. e4 {[%clk 0:03:00]}  Nf6 {[%clk 0:02:58]} 2. e5 {[%clk 0:03:00]}  Nd5 {[%clk 0:02:58]} 3. d4 {[%clk 0:03:00]}  d6 {[%clk 0:02:59]} 4. c4 {[%clk 0:02:59]}  Nb6 {[%clk 0:02:59]} 5. f4 {[%clk 0:03:00]}  g6 {[%clk 0:02:59]} 6. Nf3 {[%clk 0:03:00]}  Bg7 {[%clk 0:02:59]} 7. Nc3 {[%clk 0:02:59]}  Be6 {[%clk 0:02:52]} 8. Bd3 {[%clk 0:02:22]}  O-O {[%clk 0:02:51]} 9. Qe2 {[%clk 0:02:21]}  dxe5 {[%clk 0:01:55]} 10. fxe5 {[%clk 0:02:22]}  c5 {[%clk 0:01:55]} 11. d5 {[%clk 0:02:19]}  Bg4 {[%clk 0:01:55]} 12. Bf4 {[%clk 0:02:11]}  N8d7 {[%clk 0:01:52]} 13. O-O {[%clk 0:01:52]}  e6 {[%clk 0:01:18]} 14. Rae1 {[%clk 0:01:34]}  exd5 {[%clk 0:01:15]} 15. cxd5 {[%clk 0:01:35]}  c4 {[%clk 0:01:05]} 16. Bc2 {[%clk 0:01:32]}  Nc5 {[%clk 0:01:00]} 17. h3 {[%clk 0:01:29]}  Bxf3 {[%clk 0:00:59]} 18. Qxf3 {[%clk 0:01:30]}  Rc8 {[%clk 0:00:51]} 19. d6 {[%clk 0:01:20]}  Nd3 {[%clk 0:00:34]} 20. Bxd3 {[%clk 0:01:15]}  cxd3 {[%clk 0:00:35]} 21. Qxd3 {[%clk 0:01:12]}  Nc4 {[%clk 0:00:28]} 22. Nd5 {[%clk 0:01:09]}  Kh8 {[%clk 0:00:25]} 23. b3 {[%clk 0:01:03]}  Nb6 {[%clk 0:00:20]} 24. Ne7 {[%clk 0:01:04]}  Rc5 {[%clk 0:00:17]} 25. Bg5 {[%clk 0:00:52]}  Qd7 {[%clk 0:00:16]} 26. Bf6 {[%clk 0:00:47]}  Bxf6 {[%clk 0:00:13]} 27. exf6 {[%clk 0:00:48]}  Rd8 {[%clk 0:00:08]} 28. Rd1 {[%clk 0:00:44]}  Nc8 {[%clk 0:00:07]} 29. Qe3 {[%clk 0:00:41]}  Rh5 {[%clk 0:00:05]} 30. g4 {[%clk 0:00:40]}  Rh4 {[%clk 0:00:04]} 31. Qg5 {[%clk 0:00:40]}  Rxh3 {[%clk 0:00:04]} 32. Kg2 {[%clk 0:00:39]}  h6 {[%clk 0:00:04]} 33. Rh1 {[%clk 0:00:31]}  Qc6+ {[%clk 0:00:02]} 34. Kxh3 {[%clk 0:00:31]}  hxg5 {[%clk 0:00:01]} 35. Kg3+ {[%clk 0:00:30]} 1-0


[Site "https://www.chess.com"]

[Event "Titled Tuesday Blitz May 30 Late 2023"]
[White "KorolDimitriy75"]
[Black "Garakov, Mikhael"]
[BlackFideId "4169034"]
[WhiteElo "2438"]
[BlackElo "2347"]
[Result "0-1"]
[Round "11"]
[TimeControl "180+2"]
[Date "2023.05.31"]
[WhiteClock "0:00:02"]
[BlackClock "0:00:31"]

1. d4 {[%clk 0:02:56]}  c5 {[%clk 0:02:59]} 2. d5 {[%clk 0:02:56]}  g6 {[%clk 0:02:59]} 3. c4 {[%clk 0:02:57]}  Bg7 {[%clk 0:02:59]} 4. Nf3 {[%clk 0:02:57]}  d6 {[%clk 0:02:59]} 5. g3 {[%clk 0:02:56]}  e6 {[%clk 0:02:57]} 6. Nc3 {[%clk 0:02:55]}  Nf6 {[%clk 0:02:56]} 7. Bg2 {[%clk 0:02:55]}  exd5 {[%clk 0:02:57]} 8. cxd5 {[%clk 0:02:55]}  O-O {[%clk 0:02:57]} 9. O-O {[%clk 0:02:55]}  a6 {[%clk 0:02:57]} 10. a4 {[%clk 0:02:54]}  Re8 {[%clk 0:02:53]} 11. Nd2 {[%clk 0:02:52]}  Nbd7 {[%clk 0:02:52]} 12. Nc4 {[%clk 0:02:51]}  Nb6 {[%clk 0:02:52]} 13. Na3 {[%clk 0:02:50]}  Bd7 {[%clk 0:02:51]} 14. a5 {[%clk 0:02:48]}  Nc8 {[%clk 0:02:51]} 15. Nc4 {[%clk 0:02:36]}  Bb5 {[%clk 0:02:51]} 16. Qb3 {[%clk 0:02:28]}  Bxc4 {[%clk 0:02:51]} 17. Qxc4 {[%clk 0:02:28]}  b5 {[%clk 0:02:52]} 18. axb6 {[%clk 0:02:26]}  Nxb6 {[%clk 0:02:52]} 19. Qd3 {[%clk 0:02:06]}  c4 {[%clk 0:02:51]} 20. Qc2 {[%clk 0:02:06]}  Nfd7 {[%clk 0:02:49]} 21. e4 {[%clk 0:01:55]}  Nc5 {[%clk 0:02:48]} 22. Be3 {[%clk 0:01:54]}  Qc7 {[%clk 0:02:15]} 23. h3 {[%clk 0:01:49]}  Reb8 {[%clk 0:02:04]} 24. Kh2 {[%clk 0:01:41]}  Nbd7 {[%clk 0:01:54]} 25. f4 {[%clk 0:01:19]}  Nd3 {[%clk 0:01:42]} 26. Rab1 {[%clk 0:01:18]}  Rb3 {[%clk 0:01:30]} 27. e5 {[%clk 0:01:12]}  Rab8 {[%clk 0:01:29]} 28. exd6 {[%clk 0:00:57]}  Qxd6 {[%clk 0:01:22]} 29. Ne4 {[%clk 0:00:57]}  Qc7 {[%clk 0:01:04]} 30. d6 {[%clk 0:00:54]}  Qc8 {[%clk 0:01:03]} 31. Nd2 {[%clk 0:00:34]}  Rxb2 {[%clk 0:01:00]} 32. Rxb2 {[%clk 0:00:32]}  Nxb2 {[%clk 0:00:53]} 33. Rb1 {[%clk 0:00:16]}  c3 {[%clk 0:00:53]} 34. Ne4 {[%clk 0:00:15]}  Nc4 {[%clk 0:00:50]} 35. Rxb8 {[%clk 0:00:13]}  Qxb8 {[%clk 0:00:50]} 36. Bc1 {[%clk 0:00:09]}  Nxd6 {[%clk 0:00:48]} 37. Ng5 {[%clk 0:00:06]}  h6 {[%clk 0:00:39]} 38. Nf3 {[%clk 0:00:06]}  Qc7 {[%clk 0:00:38]} 39. Qd3 {[%clk 0:00:02]}  a5 {[%clk 0:00:36]} 40. Qd5 {[%clk 0:00:02]}  Nb6 {[%clk 0:00:31]} 0-1


[Site "https://www.chess.com"]